bitfinex-derivatives/quotes_ETHF0:USTF0_20230830
["timestamp","ask_amount","ask_price","bid_price","bid_amount"]
[1693414922840,8.5048,1698.9,1698.8,1.54255082]
[1693414923030,12.20831824,1698.9,1698.8,1.54255082]
[1693414923430,11.32517027,1698.9,1698.8,1.54255082]
[1693414923839,11.32517027,1698.9,1698.8,1.53772639]
[1693414928241,11.32517027,1698.9,1698.7,6.85062402]
[1693414928445,13.96757027,1698.9,1698.7,6.85062402]
[1693414928748,13.96757027,1698.9,1698.7,4.31582402]
[1693414930141,13.96757027,1698.9,1698.7,3.84431598]
[1693414930341,13.96757027,1698.9,1698.7,6.78820436]
[1693414930748,13.96757027,1698.9,1698.7,4.48161477]
[1693414930948,13.96757027,1698.9,1698.7,1.53772639]
[1693414931940,8.67057027,1698.9,1698.7,1.53772639]
[1693414933645,4.96705203,1698.9,1698.7,4.48167737]
[1693414933847,8.97687323,1699.3,1698.8,16.87572424]
[1693414934052,3.67987323,1699.3,1699.2,5.297]
[1693414934254,3.2078,1699.3,1699.2,5.297]
[1693414935155,1.43358176,1699.3,1699.2,5.297]
[1693414936149,5.46788294,1699.4,1699.2,5.297]
[1693414936346,6.9014647,1699.4,1699.2,5.297]
[1693414941955,12.1984647,1699.4,1699.1,11.88967727]
[1693414943865,7.56693648,1699.3,1699.1,6.59267727]
[1693414944066,1.43358176,1699.2,1699.1,6.59267727]
[1693414944364,1.43358176,1699.2,1699.0,6.83117727]
[1693414944563,6.46868176,1699.2,1699.0,7.29149575]
[1693414945968,6.46868176,1699.2,1699.1,1.53417727]
[1693414951474,5.0351,1699.2,1699.1,1.53417727]
[1693414951671,5.0351,1699.2,1699.1,4.47765406]
[1693414953068,6.46868176,1699.2,1699.1,1.53417727]
[1693414953268,6.46868176,1699.2,1699.0,7.29149575]
[1693414955974,6.46868176,1699.2,1699.1,1.53417727]
[1693414956175,5.0351,1699.2,1699.1,1.53417727]
[1693414956777,5.0351,1699.2,1699.1,4.47763988]
[1693414957779,5.0351,1699.2,1699.1,6.78422947]
[1693414958585,5.0351,1699.2,1699.1,6.79632386]
[1693414959680,6.46868176,1699.2,1699.1,6.79632386]
[1693414959973,6.46868176,1699.2,1699.1,5.25517045]
[1693414959974,5.0351,1699.2,1699.1,5.25517045]
[1693414960373,6.46868176,1699.2,1699.1,5.25517045]
[1693414961871,11.76568176,1699.2,1699.1,5.25517045]
[1693414964784,11.76568176,1699.2,1699.1,3.8535681]
[1693414965084,11.76568176,1699.2,1699.1,6.79700844]
[1693414965583,13.30137236,1699.2,1699.1,4.48527833]
[1693414965774,13.30137236,1699.2,1699.1,6.79700844]
[1693414965981,11.8677906,1699.2,1699.1,6.79700844]
[1693414966379,10.3321,1699.2,1699.1,5.25517045]
[1693414966686,11.8677906,1699.2,1699.1,6.79715806]
[1693414966983,7.8561,1699.2,1699.1,5.25517045]
[1693414967686,9.3917906,1699.2,1699.1,6.79713778]
[1693414968185,9.3917906,1699.2,1699.1,6.79720321]
[1693414968587,9.3917906,1699.2,1699.1,4.4854731]
[1693414969787,9.3917906,1699.2,1699.1,1.54203276]
[1693414970474,13.09530884,1699.2,1699.1,1.54203276]
[1693414970678,15.39884474,1699.2,1699.1,1.54203276]
[1693414971081,3.8392265,1699.2,1699.1,6.83903276]
[1693414971276,1.5356906,1699.2,1699.1,6.83903276]
[1693414971583,3.8392265,1699.2,1699.1,6.83903276]
[1693414971784,1.5356906,1699.2,1699.1,6.83903276]
[1693414971978,3.8392265,1699.2,1699.1,6.83903276]
[1693414972179,1.5356906,1699.2,1699.1,9.78227667]
[1693414972380,1.5356906,1699.2,1699.1,6.83903276]
[1693414972582,3.8392265,1699.2,1699.1,6.83903276]
[1693414973288,5.27280826,1699.2,1699.1,6.83903276]
[1693414973784,3.73711766,1699.2,1699.1,6.83903276]
[1693414974181,3.73711766,1699.2,1699.1,1.54203276]
[1693414974788,9.37008176,1699.2,1699.0,1.54203276]
[1693414974980,4.57674231,1699.1,1699.0,1.54203276]
[1693414975384,4.57674231,1699.1,1698.9,12.12526287]
[1693414975586,4.57674231,1699.1,1699.0,1.54203276]
[1693414977485,2.26993648,1699.1,1699.0,1.54203276]
[1693414978582,5.34131768,1699.1,1699.0,4.48553423]
[1693414979587,5.34131768,1699.1,1699.0,6.79726434]
[1693414979791,3.0713812,1699.1,1699.0,6.79726434]
[1693414983192,17.21539944,1699.2,1699.0,5.25523158]
[1693414983396,17.21539944,1699.2,1699.1,1.54418609]
[1693414983588,14.14401824,1699.2,1699.1,1.54418609]
[1693414984493,17.98324474,1699.2,1699.0,3.8559162]
[1693414984688,3.07770189,1699.1,1699.0,1.54418609]
[1693414984893,3.07770189,1699.1,1699.0,4.48778636]
[1693414985293,3.07770189,1699.1,1699.0,1.54418609]
[1693414985493,3.07770189,1699.1,1699.0,4.48778832]
[1693414985883,3.07770189,1699.1,1699.0,1.54418609]
[1693414987089,3.8392265,1699.1,1699.0,1.54418609]
[1693414987394,7.0470265,1699.1,1698.9,7.30197282]
[1693414987591,7.0470265,1699.1,1698.9,1.5440676]
[1693414987592,12.07749716,1699.0,1698.9,1.5440676]
[1693414987994,13.89671824,1699.0,1698.8,3.860169]
[1693414988188,12.35102365,1698.9,1698.6,3.860169]
[1693414988390,2.30608292,1698.7,1698.6,1.5440676]
[1693414988590,7.60308292,1698.7,1698.6,1.5440676]
[1693414989399,9.13994288,1698.7,1698.6,1.5440676]
[1693414989591,9.13994288,1698.7,1698.6,2.3161014]
[1693414989592,1.53685996,1698.7,1698.6,2.3161014]
[1693414989794,1.53685996,1698.7,1698.6,6.80316592]
[1693414990189,2.30608292,1698.7,1698.6,1.54285312]
[1693414990392,3.84266355,1698.7,1698.6,1.54285312]
[1693414991095,1.53658063,1698.7,1698.6,1.54285312]
[1693414991997,15.53965863,1698.8,1698.5,3.6778923]
[1693414992198,3.84049308,1698.6,1698.5,3.6778923]
[1693414992400,1.53619723,1698.6,1698.5,3.6778923]
[1693414992697,1.53619723,1698.6,1698.5,10.51774542]
[1693414993000,3.84049308,1698.8,1698.5,21.91623881]
[1693414993196,3.84049308,1698.8,1698.7,8.5048]
[1693414993395,1.53619723,1698.8,1698.7,8.5048]
[1693414994197,1.53619723,1698.9,1698.7,29.72600459]
[1693414994402,1.53619723,1699.0,1698.8,9.78234316]
[1693414994598,0.94749723,1699.0,1698.9,8.5048]
[1693414994796,0.94749723,1699.0,1698.9,15.98448608]
[1693414997895,0.94749723,1699.0,1698.9,17.52621846]
[1693414998097,0.94749723,1699.0,1698.9,15.98448608]
[1693414998392,2.30429585,1699.1,1698.9,17.52621846]
[1693414998599,2.30429585,1699.1,1699.0,5.297]
[1693415001305,2.30429585,1699.2,1699.0,5.297]
[1693415001605,3.73787761,1699.2,1699.0,5.297]
[1693415001904,2.30429585,1699.1,1699.0,5.297]
[1693415003306,4.85259585,1699.1,1699.0,5.297]
[1693415006704,5.62482215,1699.1,1698.9,3.68413119]
[1693415006908,11.30524469,1699.0,1698.9,3.2078]
[1693415007107,11.30524469,1699.0,1698.7,5.77280753]
[1693415007108,12.07704039,1699.0,1698.7,5.77280753]
[1693415007302,2.30459809,1698.9,1698.7,5.77280753]
[1693415007608,4.81919809,1698.9,1698.7,5.77280753]
[1693415008709,1.43358176,1698.8,1698.7,5.77280753]
[1693415008907,4.81919809,1698.9,1698.7,5.77280753]
[1693415009506,6.25277985,1698.9,1698.7,5.77280753]
[1693415012506,4.81919809,1698.9,1698.7,5.77280753]
[1693415013307,2.5146,1698.9,1698.7,7.31453991]
[1693415016913,3.94818176,1698.9,1698.7,7.31453991]
[1693415018611,2.26993648,1698.8,1698.7,7.31453991]
[1693415018913,4.57453457,1698.8,1698.6,6.83873238]
[1693415019112,1.43358176,1698.7,1698.5,3.85783378]
[1693415019412,2.26993648,1698.6,1698.5,2.00286684]
[1693415020014,2.26993648,1698.6,1698.5,0.46113446]
[1693415020208,2.26993648,1698.6,1698.4,12.36263378]
[1693415020406,3.70351824,1698.6,1698.5,1.54173238]
[1693415020807,3.70351824,1698.6,1698.4,12.36263378]
[1693415021716,3.70351824,1698.6,1698.4,12.8230922]
[1693415022211,3.70351824,1698.6,1698.5,1.54173238]
[1693415024711,2.26993648,1698.6,1698.5,1.54173238]
[1693415025213,3.70351824,1698.6,1698.5,1.54173238]
[1693415026218,2.26993648,1698.6,1698.5,1.54173238]
[1693415027117,2.26993648,1698.6,1698.5,4.48603224]
[1693415027514,2.26993648,1698.6,1698.5,1.54173238]
[1693415029217,4.77293648,1698.6,1698.5,1.54173238]
[1693415029721,6.20651824,1698.6,1698.5,1.54173238]
[1693415030518,4.77293648,1698.6,1698.5,1.54173238]
[1693415031415,6.20651824,1698.6,1698.5,1.54173238]
[1693415031916,6.20651824,1698.6,1698.4,7.2991908]
[1693415032520,6.20651824,1698.6,1698.4,5.75745842]
[1693415032711,8.51111633,1698.6,1698.4,5.75745842]
[1693415033113,8.51111633,1698.6,1698.4,5.297]
[1693415034522,11.50351824,1698.6,1698.3,6.83873238]
[1693415034816,11.50351824,1698.6,1698.3,7.30102286]
[1693415035024,2.5071,1698.5,1698.3,7.30102286]
[1693415035225,1.43358176,1698.4,1698.3,7.30102286]
[1693415035426,2.5071,1698.5,1698.3,7.30102286]
[1693415036127,3.94068176,1698.5,1698.3,7.30102286]
[1693415036326,2.26993648,1698.4,1698.3,7.30102286]
[1693415036829,4.72463648,1698.4,1698.3,2.00402286]
[1693415039322,4.72463648,1698.4,1698.3,0.46229048]
[1693415039527,4.72463648,1698.4,1698.2,6.83873238]
[1693415039728,1.43358176,1698.3,1698.2,6.83873238]
[1693415039933,1.43358176,1698.3,1698.2,9.78352039]
[1693415040127,4.06678176,1698.3,1698.2,9.78352039]
[1693415040325,4.06678176,1698.3,1698.2,1.54173238]
[1693415040531,12.57158176,1698.3,1698.0,4.74953238]
[1693415040834,7.56693648,1698.2,1698.0,1.54011338]
[1693415041131,1.43358176,1698.1,1698.0,1.54011338]
[1693415041518,4.06678176,1698.1,1698.0,1.54011338]
[1693415041926,4.06678176,1698.1,1698.0,2.00797664]
[1693415042737,4.06678176,1698.1,1698.0,0.46786326]
[1693415042932,4.06678176,1698.1,1697.9,6.83711338]
[1693415043144,4.06678176,1698.1,1698.0,3.2078]
[1693415045141,2.6332,1698.1,1698.0,3.2078]
[1693415045945,4.06678176,1698.1,1698.0,3.2078]
[1693415046345,4.06678176,1698.1,1698.0,4.74791338]
[1693415046642,2.6332,1698.1,1698.0,4.74791338]
[1693415046840,4.06678176,1698.1,1698.0,4.74791338]
[1693415047035,5.297,1698.4,1698.0,10.04491338]
[1693415047242,3.2078,1698.5,1698.0,10.04491338]
[1693415047243,8.2549,1698.5,1698.2,8.5048]
[1693415047641,8.2549,1698.5,1698.2,13.5079]
[1693415048238,5.0471,1698.5,1698.2,13.5079]
[1693415048443,5.0471,1698.5,1698.2,15.04801338]
[1693415050850,5.0471,1698.5,1698.3,1.54011338]
[1693415051445,5.0471,1698.5,1698.3,4.48481374]
[1693415051846,5.0471,1698.5,1698.4,5.297]
[1693415052344,6.48068176,1698.5,1698.4,5.297]
[1693415055550,5.0471,1698.5,1698.4,5.297]
[1693415055753,6.48068176,1698.5,1698.4,5.297]
[1693415056656,5.0471,1698.5,1698.4,5.297]
[1693415056847,6.48068176,1698.5,1698.4,5.297]
[1693415057748,5.0471,1698.5,1698.4,5.297]
[1693415058449,6.48068176,1698.5,1698.4,5.297]
[1693415061952,6.48068176,1698.5,1698.3,9.14728345]
[1693415063451,6.48068176,1698.5,1698.4,1.54011338]
[1693415063649,6.48068176,1698.5,1698.3,9.14728345]
[1693415063851,6.48068176,1698.5,1698.4,1.54011338]
[1693415064050,6.48068176,1698.5,1698.3,9.14728345]
[1693415064555,6.48068176,1698.5,1698.4,1.54011338]
[1693415065453,6.48068176,1698.5,1698.3,9.14728345]
[1693415066058,8.78062588,1698.5,1698.3,6.83711338]
[1693415066654,2.78199219,1698.6,1698.4,10.04491338]
[1693415066849,2.29994412,1698.6,1698.5,5.297]
[1693415067053,2.29994412,1698.7,1698.5,6.83711338]
[1693415067353,2.29994412,1698.7,1698.6,8.5048]
[1693415067553,2.29994412,1698.9,1698.6,18.28606364]
[1693415067858,2.29994412,1698.9,1698.8,5.297]
[1693415070458,2.29994412,1698.9,1698.8,8.5048]
[1693415072959,5.26444436,1699.0,1698.8,8.5048]
[1693415073366,2.29994412,1698.9,1698.8,8.5048]
[1693415073562,5.26444436,1699.0,1698.8,8.5048]
[1693415076467,2.29994412,1698.9,1698.8,8.5048]
[1693415076665,5.26444436,1699.0,1698.8,8.5048]
[1693415076868,2.29994412,1698.9,1698.6,12.49111338]
[1693415077060,2.29994412,1698.9,1698.6,10.951]
[1693415077264,2.478,1698.8,1698.6,10.951]
[1693415077462,3.91158176,1698.8,1698.6,10.951]
[1693415078667,2.26993648,1698.9,1698.6,12.49111338]
[1693415078866,2.29994412,1698.9,1698.6,12.49111338]
[1693415079469,13.03944436,1699.0,1698.6,12.49111338]
[1693415081075,4.5698806,1698.9,1698.6,10.951]
[1693415081369,1.43358176,1698.8,1698.6,10.951]
[1693415081779,3.92048176,1698.8,1698.6,10.951]
[1693415081971,3.92048176,1698.8,1698.7,5.297]
[1693415082371,6.44318176,1698.8,1698.7,5.297]
[1693415084871,5.0096,1698.8,1698.7,5.297]
[1693415085273,6.44318176,1698.8,1698.7,5.297]
[1693415086277,8.07334436,1699.0,1698.7,5.297]
[1693415086480,13.12714436,1699.0,1698.7,5.297]
[1693415086676,13.12714436,1699.0,1698.7,7.8398]
[1693415086877,7.83014436,1699.0,1698.8,8.5048]
[1693415087075,2.29994412,1699.0,1698.9,5.297]
[1693415087278,2.29994412,1699.1,1698.9,5.297]
[1693415088580,5.50774412,1699.2,1698.9,5.297]
[1693415088778,5.50774412,1699.2,1699.0,5.297]
[1693415089981,5.98498767,1699.2,1699.0,5.297]
[1693415091876,5.98498767,1699.2,1699.1,5.297]
[1693415092579,3.68504355,1699.2,1699.1,5.297]
[1693415092975,6.75163571,1699.2,1699.1,5.297]
[1693415093379,3.68504355,1699.2,1699.1,5.297]
[1693415094378,5.11862531,1699.2,1699.1,5.297]
[1693415094579,7.42417281,1699.2,1699.1,5.297]
[1693415095282,6.75163571,1699.2,1699.1,5.297]
[1693415095583,8.18521747,1699.2,1699.1,5.297]
[1693415097479,6.75163571,1699.2,1699.1,5.297]
[1693415097883,8.18521747,1699.2,1699.1,5.297]
[1693415100090,8.18521747,1699.2,1699.0,5.297]
[1693415100288,4.57600648,1699.1,1699.0,5.297]
[1693415100485,5.33652864,1699.1,1699.0,5.297]
[1693415100685,15.45952864,1699.1,1698.8,5.297]
[1693415100889,3.73969622,1699.0,1698.8,5.297]
[1693415101087,2.26993648,1698.9,1698.8,5.297]
[1693415101482,7.09593648,1698.9,1698.8,5.297]
[1693415107690,9.40205094,1698.9,1698.8,5.297]
[1693415111084,7.09593648,1698.9,1698.8,5.297]
[1693415111284,9.40789595,1698.9,1698.8,5.297]
[1693415111488,7.09593648,1698.9,1698.8,5.297]
[1693415111691,10.16252864,1698.9,1698.8,6.83711338]
[1693415112490,10.16252864,1698.9,1698.8,9.78113842]
[1693415113186,10.16252864,1698.9,1698.8,6.83711338]
[1693415113993,10.16252864,1698.9,1698.8,9.78114029]
[1693415114195,10.16252864,1698.9,1698.8,6.83711338]
[1693415115495,10.16252864,1698.9,1698.8,9.78112532]
[1693415115699,10.16252864,1698.9,1698.8,6.83711338]
[1693415117790,7.09593648,1698.9,1698.8,6.83711338]
[1693415118196,10.92917668,1698.9,1698.8,5.297]
[1693415125403,10.92917668,1698.9,1698.8,6.83711338]
[1693415127102,10.92917668,1698.9,1698.8,1.54011338]
[1693415127303,10.92917668,1698.9,1698.7,7.311708]
[1693415127608,5.26682196,1698.8,1698.7,7.311708]
[1693415128298,5.26682196,1698.8,1698.7,2.014708]
[1693415131705,5.26682196,1698.8,1698.7,7.311708]
[1693415133301,3.8332402,1698.8,1698.7,7.31509151]
[1693415133503,3.8332402,1698.8,1698.7,5.77497813]
[1693415134103,5.26682196,1698.8,1698.7,5.77497813]
[1693415134302,5.26682196,1698.8,1698.7,5.30038351]
[1693415134499,1.43358176,1698.8,1698.7,0.00338351]
[1693415138409,5.28610109,1698.8,1698.7,0.00338351]
[1693415139405,5.28610109,1698.8,1698.7,5.30038351]
[1693415140707,4.51547878,1698.8,1698.7,5.30038351]
[1693415142005,1.43358176,1698.8,1698.7,5.30038351]
[1693415142711,5.28610109,1698.8,1698.7,0.00338351]
[1693415143914,8.49390109,1698.8,1698.7,0.00338351]
[1693415144114,8.49390109,1698.8,1698.5,13.01260653]
[1693415144316,2.5233,1698.7,1698.5,11.47249315]
[1693415144510,3.74402159,1698.6,1698.5,13.01632833]
[1693415144715,3.74402159,1698.6,1698.5,15.96070971]
[1693415145113,3.74402159,1698.6,1698.5,15.96410848]
[1693415148118,2.31043983,1698.6,1698.5,15.96410848]
[1693415148717,3.74402159,1698.6,1698.5,15.96410848]
[1693415153718,2.31043983,1698.6,1698.5,15.96410848]
[1693415155219,3.74402159,1698.6,1698.5,13.45740848]
[1693415155615,4.5141682,1698.6,1698.5,5.30039877]
[1693415156616,5.28431481,1698.6,1698.5,5.30039877]
[1693415159220,1.43358176,1698.6,1698.5,5.30039877]
[1693415160523,5.28431481,1698.6,1698.5,5.30039877]
[1693415161519,8.49211481,1698.6,1698.5,5.30039877]
[1693415161919,8.49211481,1698.6,1698.5,0.00339877]
[1693415162820,4.64138176,1698.6,1698.5,0.00339877]
[1693415163126,7.71784607,1698.6,1698.5,0.00339877]
[1693415163727,7.71694531,1698.6,1698.5,0.00339877]
[1693415167624,8.19053806,1698.6,1698.5,0.00339877]
[1693415170830,5.11497451,1698.6,1698.5,0.00339877]
[1693415171026,8.96570756,1698.6,1698.5,0.00339877]
[1693415173826,2.26993648,1698.5,1698.1,1.54383518]
[1693415174135,3.84070557,1698.2,1698.1,1.54383518]
[1693415174425,2.96986399,1698.2,1698.1,1.54383518]
[1693415174831,5.23980047,1698.2,1698.1,1.54383518]
[1693415176529,5.23980047,1698.2,1698.0,14.56053911]
[1693415177032,5.23980047,1698.2,1698.0,12.24478634]
[1693415178935,5.23980047,1698.2,1698.0,14.56053911]
[1693415180228,3.70351824,1698.2,1698.0,11.76593518]
[1693415180426,6.83328223,1698.1,1697.9,1.54383518]
[1693415180632,3.70351824,1698.0,1697.9,1.54383518]
[1693415180828,6.91131824,1698.0,1697.9,1.54383518]
[1693415181235,6.91131824,1698.0,1697.8,6.51268795]
[1693415181430,6.91131824,1698.0,1697.8,4.19693518]
[1693415181930,12.20831824,1698.0,1697.8,4.19693518]
[1693415182136,12.20831824,1698.0,1697.9,0.00954214]
[1693415183133,12.20831824,1698.0,1697.8,4.19693518]
[1693415184234,12.20831824,1698.0,1697.9,0.00954214]
[1693415185237,12.20831824,1698.0,1697.8,4.19693518]
[1693415185936,12.20831824,1698.0,1697.8,2.6531]
[1693415186136,12.20831824,1698.0,1697.9,0.00954214]
[1693415187341,12.20831824,1698.0,1697.8,2.6531]
[1693415188040,6.91131824,1698.0,1697.8,9.49393518]
[1693415188242,6.91131824,1698.0,1697.9,0.00954214]
[1693415189240,6.91131824,1698.0,1697.8,9.49393518]
[1693415190242,6.91131824,1698.0,1697.9,0.00954214]
[1693415191139,6.91131824,1698.0,1697.8,9.49393518]
[1693415192140,6.91131824,1698.0,1697.9,0.00954214]
[1693415193341,7.39051313,1698.0,1697.9,0.00954214]
[1693415193546,7.39051313,1698.0,1697.8,9.49393518]
[1693415194345,7.39051313,1698.0,1697.9,0.00954214]
[1693415195135,7.39051313,1698.0,1697.8,6.84083518]
[1693415195950,7.39051313,1698.0,1697.8,9.15658795]
[1693415196246,7.39051313,1698.0,1697.9,0.00954214]
[1693415197039,3.2078,1698.2,1697.9,9.79572086]
[1693415197236,5.8151,1698.2,1697.9,6.84083518]
[1693415197439,1.43358176,1698.1,1697.9,11.62288795]
[1693415197644,1.43358176,1698.1,1697.9,9.30713518]
[1693415198243,1.43358176,1698.1,1698.0,0.00951732]
[1693415199744,1.43358176,1698.1,1698.0,1.5533525]
[1693415203348,4.08608176,1698.1,1698.0,1.5533525]
[1693415204250,4.08608176,1698.1,1698.0,1.54383518]
[1693415204653,2.01892139,1698.3,1698.0,6.84083518]
[1693415204954,3.84070557,1698.5,1698.2,5.297]
[1693415205150,3.84070557,1698.5,1698.2,6.84083518]
[1693415205151,1.53628223,1698.5,1698.2,6.84083518]
[1693415205352,1.53628223,1698.5,1698.2,9.37483518]
[1693415205652,1.53628223,1698.5,1698.2,11.99373518]
[1693415206248,1.53628223,1698.5,1698.3,0.00944288]
[1693415206450,6.50788223,1698.6,1698.4,5.297]
[1693415207251,6.50788223,1698.6,1698.5,0.00939326]
[1693415207853,6.96793994,1698.6,1698.5,0.00939326]
[1693415208054,9.27236328,1698.6,1698.5,0.00939326]
[1693415209456,1.99633994,1698.6,1698.5,0.00939326]
[1693415209658,1.53628223,1698.6,1698.5,0.00939326]
[1693415210159,1.53628223,1698.6,1698.4,5.297]
[1693415210554,4.31692857,1698.7,1698.4,6.84083518]
[1693415210755,4.31692857,1698.7,1698.5,3.2078]
[1693415210952,1.53628223,1698.7,1698.6,5.297]
[1693415211162,1.53628223,1698.7,1698.6,5.30636846]
[1693415215264,2.96986399,1698.7,1698.6,5.30636846]
[1693415215961,1.53628223,1698.7,1698.6,5.30636846]
[1693415216359,8.26686399,1698.7,1698.6,0.00936846]
[1693415216659,15.10014622,1698.7,1698.6,0.00936846]
[1693415216857,15.09404844,1698.7,1698.6,0.00936846]
[1693415217063,12.02758176,1698.7,1698.2,2.6189]
[1693415217261,6.8302251,1698.4,1698.2,2.6189]
[1693415217659,1.43358176,1698.3,1698.2,2.6189]
[1693415220357,1.43358176,1698.3,1698.1,9.84025943]
[1693415220561,2.26993648,1698.2,1698.1,7.31145943]
[1693415220956,4.69453648,1698.2,1698.1,7.31145943]
[1693415221365,4.02438176,1698.3,1698.1,7.31145943]
[1693415221567,2.5908,1698.3,1698.1,7.31145943]
[1693415221767,2.5908,1698.3,1698.1,10.51925943]
[1693415224371,4.02438176,1698.3,1698.1,10.51925943]
[1693415224664,4.02438176,1698.3,1698.1,8.97542425]
[1693415227070,1.5332251,1698.4,1698.2,13.07404218]
[1693415227370,7.59683765,1698.5,1698.3,8.5048]
[1693415227371,1.5332251,1698.5,1698.3,8.5048]
[1693415227574,1.5332251,1698.5,1698.4,5.297]
[1693415227575,1.53339132,1698.5,1698.4,5.297]
[1693415229168,1.99544078,1698.5,1698.4,5.297]
[1693415229667,3.8334783,1698.6,1698.4,5.297]
[1693415229868,1.53361572,1698.6,1698.5,5.297]
[1693415230168,1.53361572,1698.7,1698.5,8.5048]
[1693415230375,3.8340393,1698.8,1698.6,5.297]
[1693415230566,1.53361572,1698.8,1698.6,5.297]
[1693415232173,3.8340393,1698.9,1698.7,8.5048]
[1693415232574,1.53361572,1698.9,1698.7,8.5048]
[1693415233276,1.53361572,1698.9,1698.8,7.80765078]
[1693415233574,9.6960393,1699.0,1698.8,7.80765078]
[1693415234575,7.39561572,1699.0,1698.8,7.80765078]
[1693415235073,8.82919748,1699.0,1698.8,7.80765078]
[1693415235273,14.12619748,1699.0,1698.8,7.80765078]
[1693415235675,2.26993648,1698.9,1698.8,7.80765078]
[1693415241485,2.26993648,1698.9,1698.7,8.5048]
[1693415241873,2.26993648,1698.9,1698.7,5.297]
[1693415242273,14.6058715,1699.0,1698.7,5.297]
[1693415242480,13.07225578,1699.0,1698.7,5.297]
[1693415243879,15.34219226,1699.0,1698.7,5.297]
[1693415244380,16.87580798,1699.0,1698.7,5.297]
[1693415244586,15.34219226,1699.0,1698.7,5.297]
[1693415244787,16.87580798,1699.0,1698.7,5.297]
[1693415249686,16.87580798,1699.0,1698.7,6.83739371]
[1693415250086,16.87580798,1699.0,1698.7,5.297]
[1693415250294,16.87580798,1699.0,1698.7,6.83739371]
[1693415251282,19.17792884,1699.0,1698.7,6.83753573]
[1693415253290,1.53429463,1698.9,1698.7,5.297]
[1693415253486,1.43358176,1698.8,1698.7,5.297]
[1693415254094,1.53429463,1698.9,1698.7,5.297]
[1693415254995,2.96787639,1698.9,1698.7,5.297]
[1693415257798,5.26931834,1698.9,1698.7,5.297]
[1693415258099,2.96787639,1698.9,1698.7,5.297]
[1693415258397,5.26931834,1698.9,1698.7,5.297]
[1693415259200,1.53429463,1698.8,1698.7,5.297]
[1693415259602,4.08909463,1698.8,1698.7,5.297]
[1693415264298,4.85624195,1698.8,1698.7,5.297]
[1693415265206,6.39115844,1698.8,1698.7,5.297]
[1693415265805,4.85624195,1698.8,1698.7,5.297]
[1693415270012,5.32203086,1698.8,1698.7,5.297]
[1693415270707,6.08917818,1698.8,1698.7,5.297]
[1693415271412,3.02058891,1698.8,1698.7,5.297]
[1693415271612,6.09420655,1698.8,1698.7,5.297]
[1693415274409,6.09420655,1698.8,1698.7,6.83984228]
[1693415275411,6.86261096,1698.8,1698.7,6.83984228]
[1693415276313,8.29619272,1698.8,1698.7,6.83984228]
[1693415277315,8.29619272,1698.8,1698.7,5.297]
[1693415278415,4.45417067,1698.8,1698.7,5.297]
[1693415284721,4.45417067,1698.8,1698.6,1.54284228]
[1693415284921,3.84726321,1698.7,1698.5,6.83984228]
[1693415285116,6.11719969,1698.7,1698.5,6.83984228]
[1693415285422,4.51177255,1698.6,1698.5,6.83984228]
[1693415289220,4.51177255,1698.6,1698.5,9.78430153]
[1693415289420,3.07819079,1698.6,1698.5,9.78430153]
[1693415289620,3.07819079,1698.6,1698.5,15.30636495]
[1693415289824,2.30911179,1698.6,1698.5,13.76352267]
[1693415293029,3.74269355,1698.6,1698.5,13.76352267]
[1693415293322,2.30911179,1698.6,1698.5,13.76352267]
[1693415300835,3.74269355,1698.6,1698.5,13.76352267]
[1693415301036,2.30911179,1698.6,1698.5,13.76352267]
[1693415301943,3.74269355,1698.6,1698.5,13.76352267]
[1693415304840,3.74269355,1698.6,1698.5,14.23347631]
[1693415305943,2.30911179,1698.6,1698.5,14.23347631]
[1693415306544,3.74269355,1698.6,1698.5,14.23347631]
[1693415307042,2.30911179,1698.6,1698.5,14.23347631]
[1693415307238,3.74269355,1698.6,1698.5,14.23347631]
[1693415309447,6.37359355,1698.6,1698.5,14.23347631]
[1693415313842,4.06448176,1698.6,1698.5,14.23347631]
[1693415314537,2.6309,1698.6,1698.5,14.23347631]
[1693415314744,4.06448176,1698.6,1698.5,14.23347631]
[1693415316945,7.14267255,1698.6,1698.5,14.23347631]
[1693415320342,7.14267255,1698.6,1698.5,12.57051687]
[1693415320549,4.06448176,1698.6,1698.5,6.84184056]
[1693415321050,4.06448176,1698.6,1698.5,9.78634619]
[1693415321051,7.1424564,1698.6,1698.5,9.78634619]
[1693415321249,2.30868544,1698.6,1698.5,14.53499019]
[1693415321447,2.30868544,1698.7,1698.5,22.26392263]
[1693415321644,3.84726321,1698.9,1698.6,16.6277219]
[1693415321844,3.07871842,1698.9,1698.8,10.82161247]
[1693415322048,3.84726321,1699.0,1698.8,13.7661181]
[1693415322049,3.07770754,1699.0,1698.8,13.7661181]
[1693415322353,3.07770754,1699.0,1698.9,9.78475878]
[1693415322845,3.07770754,1699.0,1698.9,6.84102713]
[1693415324754,8.09220754,1699.1,1698.9,6.84102713]
[1693415324948,8.09220754,1699.1,1699.0,5.297]
[1693415325651,9.5257893,1699.1,1699.0,5.297]
[1693415325851,8.09220754,1699.1,1699.0,5.297]
[1693415327848,6.44808176,1699.1,1699.0,5.297]
[1693415328050,8.09220754,1699.1,1699.0,5.297]
[1693415330757,5.0145,1699.1,1699.0,5.297]
[1693415331454,6.44808176,1699.1,1699.0,5.297]
[1693415331957,5.0145,1699.1,1699.0,5.297]
[1693415333950,3.07770754,1699.3,1699.1,5.297]
[1693415334152,3.07770754,1699.4,1699.2,8.5048]
[1693415334452,2.48920754,1699.4,1699.3,5.297]
[1693415334860,5.1196,1699.5,1699.3,5.297]
[1693415335060,5.1196,1699.5,1699.4,5.297]
[1693415340959,3.83585368,1699.9,1699.4,16.27089449]
[1693415341152,3.83585368,1700.0,1699.8,5.297]
[1693415341460,5.0385,1700.0,1699.9,5.297]
[1693415341857,6.47208176,1700.0,1699.9,5.297]
[1693415343660,5.0385,1700.0,1699.9,5.297]
[1693415344166,6.47208176,1700.0,1699.9,5.297]
[1693415344466,5.0385,1700.0,1699.9,5.297]
[1693415346656,2.4929,1700.0,1699.9,5.297]
[1693415346858,3.67877601,1700.1,1699.9,5.297]
[1693415346859,0.47097601,1700.1,1699.9,5.297]
[1693415347062,8.0424,1700.3,1700.0,5.297]
[1693415347364,8.0424,1700.3,1700.2,5.297]
[1693415348565,4.8346,1700.3,1700.2,5.297]
[1693415349559,6.26818176,1700.3,1700.2,5.297]
[1693415352572,4.8346,1700.3,1700.2,5.297]
[1693415352774,6.26818176,1700.3,1700.2,5.297]
[1693415356675,6.73171793,1700.3,1700.2,5.297]
[1693415357675,5.29813617,1700.3,1700.2,5.297]
[1693415359480,4.8346,1700.3,1700.2,5.297]
[1693415360972,6.26818176,1700.3,1700.2,5.297]